fUST/lending_fUST_20251008
["ID","MTS","AMOUNT","RATE_DAILY","PERIOD"]
[389852291,1759871432578,-421.99591831,0.00017887,2]
[389852292,1759871432587,-500.0,0.00017887,2]
[389852293,1759871432596,-481.81299749,0.00017887,2]
[389852294,1759871432604,-400.64262767,0.00017887,2]
[389852295,1759871432614,-500.0,0.00017887,2]
[389852296,1759871432623,-500.0,0.00017887,2]
[389852297,1759871432631,-500.0,0.00017887,2]
[389852298,1759871432640,-500.0,0.00017887,2]
[389852299,1759871432649,-402.9118406,0.00017887,2]
[389852300,1759871432657,-500.0,0.00017887,2]
[389852301,1759871432666,-43825.98608084,0.00017888,2]
[389852976,1759871440944,-275.69331501,0.00017888,2]
[389852978,1759871440955,-19999.64034,0.00017888,2]
[389853182,1759871443164,-1439.20847196,0.00017888,2]
[389853189,1759871443219,-4094.537038,0.00017888,2]
[389853191,1759871443231,-5450.3400166,0.00017888,2]
[389853478,1759871446223,-35248.30692115,0.00017888,2]
[389853692,1759871833634,7500.0,0.00028767,120]
[389853698,1759871887202,225.015345,0.00016884,2]
[389853699,1759872157855,-300.0,0.00017771,2]
[389853700,1759872157882,-1200.0,0.00017771,2]
[389853701,1759872157909,-300.0,0.00017772,2]
[389853702,1759872157936,-300.0,0.00017772,2]
[389853703,1759872157961,-300.0,0.00017772,2]
[389853704,1759872157987,-300.0,0.00017772,2]
[389853705,1759872158015,-1200.0,0.00017772,2]
[389853706,1759872158048,-150.0,0.00017773,2]
[389853707,1759872158387,-2288.54431063,0.00017773,2]
[389853708,1759872158440,-600.69503808,0.00017773,2]
[389853709,1759872158505,-649.2,0.00017778,3]
[389853710,1759872158575,-308.63258681,0.00017787,2]
[389853711,1759872158643,-158.70652283,0.00017787,2]
[389853712,1759872158710,-442.42366639,0.00017787,2]
[389853713,1759872158770,-155.62695863,0.00017787,2]
[389853714,1759872158798,-211.43464896,0.00017787,2]
[389853715,1759872160697,-9489.26489754,0.00017788,2]
[389853716,1759872160855,-10000.01,0.00017788,2]
[389853717,1759872164712,-10000.01,0.00017788,2]
[389853718,1759872164906,-10000.01,0.00017788,2]
[389853719,1759872168713,-10000.01,0.00017788,2]
[389853720,1759872169144,-10000.01,0.00017788,2]
[389853734,1759872286340,175.032662,0.00017058,2]
[389853739,1759872337551,9824.977338,0.00016825,2]
[389853740,1759872337574,10000.01,0.00016825,2]
[389853741,1759872337595,3808.1604788,0.00016825,2]
[389853746,1759872435230,-299.46592255,0.00017583,2]
[389853964,1759872635900,-150.0,0.00017583,2]
[389853965,1759872635909,-1940.52363235,0.00017754,2]
[389853966,1759872635919,-300.0,0.00017772,2]
[389853967,1759872635928,-300.0,0.00017772,2]
[389853968,1759872635937,-1200.0,0.00017772,2]
[389853969,1759872635946,-508.0379864,0.00017773,2]
[389853970,1759872635955,-500.0,0.00017773,2]
[389853971,1759872635965,-500.0,0.00017773,2]
[389853972,1759872635973,-500.0,0.00017773,2]
[389853973,1759872635982,-500.0,0.00017773,2]
[389853974,1759872635991,-500.0,0.00017773,2]
[389853975,1759872636000,-500.0,0.00017773,2]
[389853976,1759872636009,-500.0,0.00017773,2]
[389853977,1759872636018,-500.0,0.00017773,2]
[389853978,1759872636029,-500.0,0.00017773,2]
[389853979,1759872636038,-500.0,0.00017773,2]
[389853980,1759872636048,-1151.0,0.00017786,2]
[389853982,1759872636057,-500.0,0.00017787,2]
[389853984,1759872636066,-12494.74881874,0.00017788,2]
[389853986,1759872636076,-2051.56397607,0.00017788,2]
[389853988,1759872636087,-16347.99027251,0.00017788,2]
[389853989,1759872636098,-5625.06249474,0.00017788,2]
[389853990,1759872636109,-1680.06780001,0.00017788,2]
[389854004,1759872638065,-11442.44151854,0.00017788,2]
[389854005,1759872638193,-260868.81022185,0.00017788,2]
[389854006,1759872638202,-1567.510453,0.00017854,2]
[389854007,1759872638211,-508.158,0.00017888,2]
[389854008,1759872638219,-500.0,0.00017973,2]
[389854009,1759872638228,-100000.0,0.0001799,2]
[389854010,1759872638238,-4289.57798507,0.00018028,2]
[389854011,1759872638250,-1127.20218465,0.00018132,2]
[389854012,1759872638260,-172.5,0.00018183,2]
[389854015,1759872638269,-500.0,0.0001819,2]
[389854016,1759872638279,-158.02090327,0.00018292,2]
[389854018,1759872638290,-1000.0,0.00018321,2]
[389854019,1759872638298,-1000.0,0.00018321,2]
[389854020,1759872638307,-700.0,0.00018321,2]
[389854021,1759872638317,-1000.0,0.00018321,2]
[389854022,1759872638327,-1000.0,0.00018321,2]
[389854023,1759872638336,-1000.0,0.00018321,2]
[389854024,1759872638345,-1000.0,0.00018321,2]
[389854025,1759872638355,-1000.0,0.00018321,2]
[389854026,1759872638365,-1000.0,0.00018321,2]
[389854027,1759872638374,-1000.0,0.00018321,2]
[389854028,1759872638383,-300.0,0.00018346,2]
[389854029,1759872638392,-300.0,0.00018346,2]
[389854030,1759872638402,-300.0,0.00018346,2]
[389854031,1759872638411,-300.0,0.00018346,2]
[389854032,1759872638420,-300.0,0.00018346,2]
[389854033,1759872638430,-300.0,0.00018346,2]
[389854034,1759872638439,-300.0,0.00018346,2]
[389854035,1759872638448,-300.0,0.00018346,2]
[389854036,1759872638458,-300.0,0.00018346,2]
[389854037,1759872638468,-300.0,0.00018346,2]
[389854038,1759872638478,-300.0,0.00018346,2]
[389854039,1759872638487,-300.0,0.00018346,2]
[389854040,1759872638497,-300.0,0.00018346,2]
[389854041,1759872638507,-300.0,0.00018346,2]
[389854042,1759872638516,-300.0,0.00018346,2]
[389854043,1759872638526,-600.0,0.00018346,2]
[389854044,1759872638535,-500.0,0.00018346,2]
[389854045,1759872638544,-500.0,0.00018353,2]
[389854046,1759872638554,-1000.0,0.00018356,2]
[389854047,1759872638564,-278.6297192,0.00018419,2]
[389854048,1759872638573,-500.0,0.00018463,2]
[389854049,1759872638582,-500.0,0.000185,2]
[389854050,1759872638591,-4665.41001849,0.000185,2]
[389854051,1759872638600,-1000.0,0.00018521,2]
[389854052,1759872638610,-500.0,0.00018529,2]
[389854053,1759872638619,-500.0,0.00018529,2]
[389854054,1759872638628,-279.58852326,0.00018529,2]
[389854055,1759872638637,-500.0,0.00018529,2]
[389854056,1759872638647,-500.0,0.0001862,2]
[389854057,1759872638656,-1000.0,0.0001863,2]
[389854058,1759872638666,-500.0,0.0001871,2]
[389854059,1759872638675,-500.0,0.0001871,2]
[389854060,1759872638684,-500.0,0.0001871,2]
[389854061,1759872638694,-500.0,0.00018737,2]
[389854062,1759872638703,-195.0,0.00018783,2]
[389854063,1759872638713,-500.0,0.00018811,2]
[389854064,1759872638722,-1000.0,0.00018868,2]
[389854065,1759872638731,-1500.0,0.00018868,2]
[389854066,1759872638741,-1007.99579716,0.00018868,2]
[389854067,1759872638751,-500.0,0.00018881,2]
[389854068,1759872638760,-500.0,0.00018894,2]
[389854069,1759872638770,-302.8788636,0.000189,2]
[389854070,1759872638779,-1000.0,0.00018901,2]
[389854071,1759872638787,-1000.0,0.00018904,2]
[389854072,1759872638796,-500.0,0.00018909,2]
[389854073,1759872638805,-500.0,0.00018909,2]
[389854074,1759872638815,-262.15546015,0.00018909,2]
[389854075,1759872638825,-500.0,0.00018909,2]
[389854076,1759872638834,-500.0,0.00018909,2]
[389854077,1759872638844,-500.0,0.00018928,2]
[389854078,1759872638853,-500.0,0.00018928,2]
[389854079,1759872638862,-500.0,0.00018928,2]
[389854080,1759872638871,-500.0,0.00018928,2]
[389854081,1759872638881,-303.56566882,0.00018928,2]
[389854082,1759872638891,-500.0,0.00018928,2]
[389854083,1759872638901,-500.0,0.00018928,2]
[389854084,1759872638910,-500.0,0.00018928,2]
[389854085,1759872638920,-163.34500203,0.00018928,2]
[389854086,1759872638929,-500.0,0.00018973,2]
[389854087,1759872638939,-129213.15893081,0.00019,2]
[389854088,1759872638948,-2717.758851,0.00019,2]
[389854089,1759872638958,-2717.758851,0.00019,2]
[389854090,1759872638967,-2717.758851,0.00019,2]
[389854091,1759872638976,-2717.758851,0.00019,2]
[389854092,1759872638985,-151.733183,0.00019,2]
[389854093,1759872638995,-500.0,0.00019011,2]
[389854094,1759872639004,-500.0,0.00019028,2]
[389854095,1759872639013,-500.0,0.00019028,2]
[389854096,1759872639022,-1940.52363232,0.00019041,2]
[389854097,1759872639031,-1000.0,0.00019077,2]
[389854098,1759872639040,-843.61405455,0.00019077,2]
[389854099,1759872639049,-1000.0,0.00019077,2]
[389854100,1759872639059,-302.8788636,0.00019089,2]
[389854101,1759872639067,-580.67672975,0.00019113,2]
[389854102,1759872639077,-500.0,0.00019113,2]
[389854103,1759872639086,-500.0,0.00019113,2]
[389854104,1759872639095,-160.0,0.00019138,2]
[389854105,1759872639103,-500.0,0.00019168,2]
[389854106,1759872639113,-1000.0,0.00019178,2]
[389854107,1759872639122,-341.40647495,0.00019217,2]
[389854108,1759872639131,-500.0,0.00019217,2]
[389854109,1759872639140,-500.0,0.00019217,2]
[389854110,1759872639149,-500.0,0.00019217,2]
[389854111,1759872639159,-500.0,0.00019217,2]
[389854112,1759872639168,-500.0,0.00019217,2]
[389854113,1759872639177,-506.93223394,0.00019217,2]
[389854114,1759872639187,-1000.91811297,0.00019258,2]
[389854115,1759872639196,-1132.70479184,0.00019258,2]
[389854116,1759872639205,-1144.33892563,0.00019258,2]
[389854117,1759872639214,-302.8788636,0.00019278,2]
[389854118,1759872639224,-500.0,0.00019285,2]
[389854119,1759872639234,-1000.0,0.00019358,2]
[389854120,1759872639247,-217.5,0.00019383,2]
[389854121,1759872639256,-420.0,0.00019395,2]
[389854122,1759872639265,-1000.0,0.00019429,2]
[389854123,1759872639274,-500.0,0.00019442,2]
[389854124,1759872639285,-1588.87650723,0.00019449,2]
[389854125,1759872639295,-1000.0,0.00019452,2]
[389854126,1759872639304,-1000.0,0.00019457,2]
[389854127,1759872639313,-500.0,0.00019457,2]
[389854128,1759872639325,-1000.0,0.00019457,2]
[389854129,1759872639335,-1000.0,0.00019457,2]
[389854130,1759872639344,-302.8788636,0.00019467,2]
[389854131,1759872639353,-506.98907359,0.00019476,2]
[389854132,1759872639362,-342.41886422,0.00019476,2]
[389854133,1759872639371,-1000.0,0.00019476,2]
[389854134,1759872639381,-1000.0,0.00019476,2]
[389854135,1759872639389,-1000.0,0.00019476,2]
[389854136,1759872639399,-1000.0,0.00019476,2]
[389854137,1759872639408,-1000.0,0.00019476,2]
[389854138,1759872639417,-1680.0,0.00019491,2]
[389854139,1759872639426,-1000.0,0.00019521,2]
[389854140,1759872639435,-500.0,0.00019559,2]
[389854141,1759872639445,-234.20938206,0.00019566,2]
[389854142,1759872639454,-402.02512307,0.00019566,2]
[389854143,1759872639463,-533.72506543,0.00019566,2]
[389854144,1759872639473,-160.0,0.00019568,2]
[389854145,1759872639482,-500.0,0.00019576,2]
[389854146,1759872639491,-1717.14803608,0.000196,2]
[389854147,1759872639501,-302.8788636,0.00019656,2]
[389854148,1759872639510,-1000.0,0.0001966,2]
[389854149,1759872639520,-1000.0,0.0001966,2]
[389854150,1759872639529,-151.0,0.00019661,7]
[389854151,1759872639538,-260.0,0.00019686,2]
[389854152,1759872639547,-500.0,0.00019716,2]
[389854153,1759872639556,-1000.0,0.00019726,2]
[389854154,1759872639566,-1000.0,0.00019765,2]
[389854155,1759872639575,-1000.0,0.00019765,2]
[389854156,1759872639583,-1109.71397675,0.00019765,2]
[389854157,1759872639592,-1000.0,0.00019765,2]
[389854158,1759872639601,-1000.0,0.00019765,2]
[389854159,1759872639610,-1717.14803608,0.000198,2]
[389854160,1759872639619,-156.09962736,0.00019825,2]
[389854161,1759872639628,-500.44900947,0.00019825,2]
[389854162,1759872639636,-500.0,0.00019825,2]
[389854163,1759872639646,-500.0,0.00019825,2]
[389854164,1759872639654,-500.0,0.00019825,2]
[389854165,1759872639663,-500.0,0.00019825,2]
[389854166,1759872639673,-500.0,0.00019825,2]
[389854167,1759872639682,-500.0,0.00019825,2]
[389854168,1759872639690,-500.0,0.00019825,2]
[389854169,1759872639700,-500.0,0.00019825,2]
[389854170,1759872639709,-500.0,0.00019825,2]
[389854171,1759872639718,-500.0,0.00019825,2]
[389854172,1759872639728,-500.0,0.00019825,2]
[389854173,1759872639737,-500.0,0.00019833,2]
[389854174,1759872639746,-247.852894,0.00019906,7]
[389854175,1759872639756,-151.0,0.00019906,7]
[389854176,1759872639765,-151.0,0.00019906,7]
[389854177,1759872639774,-151.338804,0.00019906,7]
[389854178,1759872639784,-151.0,0.00019906,7]
[389854179,1759872639793,-151.0,0.00019906,7]
[389854180,1759872639803,-151.0,0.00019906,7]
[389854181,1759872639811,-151.0,0.00019906,7]
[389854182,1759872639821,-151.0,0.00019906,7]
[389854183,1759872639830,-151.0,0.00019906,7]
[389854184,1759872639839,-151.0,0.00019906,7]
[389854185,1759872639848,-151.0,0.00019906,7]
[389854186,1759872639857,-151.0,0.00019906,7]
[389854187,1759872639866,-151.0,0.00019906,7]
[389854188,1759872639876,-151.0,0.00019906,7]
[389854190,1759872639885,-151.0,0.00019906,7]
[389854192,1759872639894,-151.0,0.00019906,7]
[389854194,1759872639904,-151.0,0.00019906,7]
[389854196,1759872639914,-151.0,0.00019906,7]
[389854197,1759872639924,-268.928441,0.00019906,7]
[389854198,1759872639934,-1002.56607536,0.00019977,2]
[389854199,1759872639943,-240.0,0.00019983,2]
[389854200,1759872639952,-151.0,0.00019984,7]
[389854201,1759872639961,-210.649187,0.00019984,7]
[389854202,1759872639970,-151.0,0.00019984,7]
[389854203,1759872639979,-151.0,0.00019984,7]
[389854204,1759872639988,-500.0,0.0001999,2]
[389854206,1759872639998,-1717.14803608,0.0002,2]
[389854208,1759872640007,-151.50084126,0.0002,2]
[389854209,1759872640016,-234.05807603,0.0002,2]
[389854211,1759872640025,-14517.33720406,0.0002,2]
[389854213,1759872640034,-36472.40749508,0.0002,20]
[389854216,1759872640043,-1000.0,0.0002,2]
[389854218,1759872640052,-2717.758851,0.0002,7]
[389854220,1759872640061,-2717.758851,0.0002,7]
[389854222,1759872640070,-2717.758851,0.0002,7]
[389854223,1759872640079,-2717.758851,0.0002,7]
[389854226,1759872640089,-1500.0,0.00020005,2]
[389854228,1759872640099,-500.0,0.00020005,2]
[389854229,1759872640107,-1000.0,0.00020005,2]
[389854231,1759872640116,-1500.0,0.00020024,2]
[389854233,1759872640125,-246.48150504,0.00020024,2]
[389854235,1759872640135,-1500.0,0.00020024,2]
[389854237,1759872640144,-1000.0,0.00020024,2]
[389854239,1759872640154,-454.3182954,0.00020034,4]
[389854240,1759872640162,-500.0,0.00020107,2]
[389854241,1759872640171,-151.0,0.00020173,7]
[389854243,1759872640180,-151.0,0.00020173,7]
[389854245,1759872640189,-151.0,0.00020173,7]
[389854247,1759872640199,-151.0,0.00020173,7]
[389854249,1759872640208,-402.02512307,0.00020173,7]
[389854251,1759872640218,-533.72506543,0.00020173,7]
[389854252,1759872640227,-151.0,0.00020173,7]
[389854253,1759872640237,-151.0,0.00020173,7]
[389854254,1759872640250,-151.645081,0.00020173,7]
[389854255,1759872640260,-151.0,0.00020173,7]
[389854256,1759872640270,-151.0,0.00020173,7]
[389854257,1759872640279,-151.0,0.00020173,7]
[389854258,1759872640291,-151.0,0.00020173,7]
[389854259,1759872640300,-151.0,0.00020173,7]
[389854260,1759872640309,-151.0,0.00020173,7]
[389854261,1759872640318,-151.0,0.00020173,7]
[389854262,1759872640329,-720.0,0.0002018,2]
[389854263,1759872640338,-151.0,0.0002018,7]
[389854264,1759872640347,-151.0,0.0002018,7]
[389854265,1759872640356,-685.479368,0.00020187,2]
[389854266,1759872640366,-1717.14803608,0.000202,2]
[389854267,1759872640375,-257.44575561,0.00020208,2]
[389854268,1759872640384,-1500.0,0.00020208,2]
[389854269,1759872640393,-454.3182954,0.00020223,4]
[389854270,1759872640402,-360.0,0.00020234,2]
[389854271,1759872640412,-1000.0,0.00020273,2]
[389854272,1759872640421,-225.015345,0.00020309,2]
[389854273,1759872640430,-1000.0,0.00020313,2]
[389854274,1759872640439,-1940.52363232,0.00020327,2]
[389854275,1759872640449,-1000.0,0.00020373,2]
[389854276,1759872640458,-1000.0,0.00020373,2]
[389854277,1759872640468,-1000.0,0.00020373,2]
[389854278,1759872640478,-1000.0,0.00020373,2]
[389854279,1759872640487,-1000.0,0.00020373,2]
[389854280,1759872640496,-1000.0,0.00020373,2]
[389854281,1759872640505,-500.0,0.00020381,2]
[389854282,1759872640515,-1717.14803608,0.000204,2]
[389854283,1759872640524,-454.3182954,0.00020412,4]
[389854284,1759872640534,-1000.0,0.00020547,2]
[389854285,1759872640543,-500.0,0.00020572,2]
[389854286,1759872640553,-500.0,0.00020572,2]
[389854287,1759872640562,-262.5,0.00020583,2]
[389854288,1759872640572,-454.31829543,0.00020601,4]
[389854289,1759872640581,-500.0,0.00020655,2]
[389854290,1759872640591,-168.3888056,0.00020673,2]
[389854291,1759872640600,-174.61919141,0.00020673,2]
[389854292,1759872640610,-18603.8837,0.00020673,2]
[389854293,1759872640619,-151.0,0.00020673,7]
[389854294,1759872640629,-151.0,0.00020673,7]
[389854295,1759872640638,-151.0,0.00020673,7]
[389854296,1759872640648,-151.0,0.00020673,7]
[389854297,1759872640657,-460.0,0.00020782,2]
[389854298,1759872640666,-1000.0,0.00020821,2]
[389854299,1759872640675,-269.0,0.00020877,3]
[389854300,1759872640684,-1500.0,0.00020921,2]
[389854301,1759872640693,-1500.0,0.00020921,2]
[389854302,1759872640702,-685.30445961,0.00020921,2]
[389854303,1759872640711,-1500.0,0.00020921,2]
[389854304,1759872640720,-1500.0,0.00020921,2]
[389854305,1759872640730,-500.0,0.00020929,2]
[389854306,1759872640739,-481.25562608,0.00021095,2]
[389854307,1759872640748,-587.0,0.00021167,2]
[389854308,1759872640758,-285.0,0.00021183,2]
[389854309,1759872640767,-2000.0,0.000212,2]
[389854310,1759872640776,-500.0,0.00021203,2]
[389854311,1759872640785,-1000.0,0.00021213,4]
[389854312,1759872640795,-17681.51254617,0.00021221,2]
[389854313,1759872640804,-151.0,0.00021221,7]
[389854314,1759872640814,-151.0,0.00021221,7]
[389854315,1759872640823,-151.0,0.00021221,7]
[389854316,1759872640833,-151.0,0.00021221,7]
[389854317,1759872640842,-151.0,0.00021221,7]
[389854318,1759872640852,-297.5145665,0.00021257,2]
[389854319,1759872640861,-20554.7059492,0.00021272,2]
[389854320,1759872640871,-151.0,0.00021272,7]
[389854321,1759872640880,-202.314797,0.00021272,7]
[389854322,1759872640889,-151.0,0.00021272,7]
[389854323,1759872640899,-151.446544,0.00021272,7]
[389854324,1759872640908,-151.0,0.00021272,7]
[389854325,1759872640917,-151.0,0.00021272,7]
[389854326,1759872640927,-151.0,0.00021272,7]
[389854327,1759872640936,-151.0,0.00021272,7]
[389854328,1759872640945,-151.0,0.00021272,7]
[389854329,1759872640954,-151.0,0.00021272,7]
[389854330,1759872640964,-2717.758851,0.00021272,7]
[389854331,1759872640973,-2717.758851,0.00021272,7]
[389854332,1759872640982,-2717.758851,0.00021272,7]
[389854333,1759872640992,-2717.758851,0.00021272,7]
[389854334,1759872641001,-560.0,0.0002133,2]
[389854335,1759872641010,-420.0,0.00021376,2]
[389854336,1759872641020,-2000.0,0.00021469,2]
[389854337,1759872641028,-2000.0,0.00021469,2]
[389854338,1759872641037,-2000.0,0.00021469,2]
[389854339,1759872641047,-500.0,0.00021477,2]
[389854340,1759872641057,-1940.52363232,0.00021614,2]
[389854341,1759872641066,-500.0,0.00021751,2]
[389854342,1759872641075,-307.5,0.00021783,2]
[389854343,1759872641084,-167.83565487,0.00021854,2]
[389854344,1759872641094,-660.0,0.00021878,2]
[389854345,1759872641103,-1014.841414,0.00022,2]
[389854346,1759872641112,-2500.0,0.00022017,2]
[389854347,1759872641122,-2500.0,0.00022017,2]
[389854348,1759872641131,-795.62220928,0.00022017,2]
[389854349,1759872641140,-500.0,0.00022025,2]
[389854350,1759872641149,-500.0,0.00022075,2]
[389854351,1759872641158,-151.0,0.00022121,7]
[389854352,1759872641167,-151.0,0.00022121,7]
[389854353,1759872641176,-151.0,0.00022121,7]
[389854354,1759872641185,-151.0,0.00022121,7]
[389854355,1759872641195,-151.0,0.00022121,7]
[389854356,1759872641204,-980.0,0.00022121,2]
[389854357,1759872641213,-1000.0,0.00022158,5]
[389854358,1759872641223,-864.0,0.00022198,20]
[389854359,1759872641232,-1028.9503613,0.0002231,2]
[389854360,1759872641244,-330.0,0.00022383,2]
[389854361,1759872641254,-760.0,0.00022426,2]
[389854362,1759872641263,-1000.0,0.000225,2]
[389854363,1759872641273,-500.0,0.00022543,2]
[389854364,1759872641283,-3000.0,0.00022565,2]
[389854365,1759872641294,-151.0,0.000227,8]
[389854366,1759872641304,-500.0,0.000227,2]
[389854367,1759872641314,-250.0,0.0002278,2]
[389854368,1759872641324,-212.814,0.0002278,2]
[389854369,1759872641334,-150.0,0.00022782,2]
[389854370,1759872641344,-229.054,0.00022782,2]
[389854371,1759872641354,-250.0,0.00022782,2]
[389854372,1759872641364,-263.486,0.00022782,2]
[389854373,1759872641373,-293.902,0.00022782,2]
[389854374,1759872641382,-945.27224963,0.00022867,2]
[389854375,1759872641391,-3777.30790952,0.00022867,2]
[389854376,1759872641401,-515.5844808,0.00022867,2]
[389854377,1759872641410,-2060.27558526,0.00022867,2]
[389854378,1759872641419,-377.94037386,0.00022867,2]
[389854379,1759872641429,-1511.76149543,0.00022867,2]
[389854380,1759872641438,-3398.06190136,0.00022867,2]
[389854381,1759872641447,-154.47269343,0.00022867,2]
[389854382,1759872641457,-617.27288294,0.00022867,2]
[389854383,1759872641466,-198.29765707,0.00022867,2]
[389854384,1759872641476,-168.99728248,0.00022867,2]
[389854385,1759872641485,-151.0,0.00022867,2]
[389854386,1759872641494,-151.0,0.00022867,2]
[389854387,1759872641503,-151.0,0.00022867,2]
[389854388,1759872641512,-151.15484948,0.00022867,2]
[389854389,1759872641522,-198.0,0.00022867,2]
[389854390,1759872641531,-468.63315858,0.00022867,2]
[389854391,1759872641540,-151.0,0.00022867,7]
[389854392,1759872641549,-193.017752,0.00022867,7]
[389854393,1759872641559,-500.0,0.00022867,2]
[389854394,1759872641568,-723.0,0.00022867,2]
[389854395,1759872641577,-500.0,0.00022867,2]
[389854396,1759872641587,-154.816444,0.00022867,7]
[389854397,1759872641597,-151.0,0.00022867,7]
[389854398,1759872641606,-151.0,0.00022867,7]
[389854399,1759872641813,-151.0,0.00022867,2]
[389854400,1759872641822,-151.0,0.00022867,7]
[389854401,1759872641831,-151.0,0.00022867,7]
[389854402,1759872641841,-151.0,0.00022867,7]
[389854403,1759872641851,-500.0,0.00022867,2]
[389854404,1759872641860,-151.0,0.00022867,2]
[389854405,1759872641869,-500.0,0.00022867,2]
[389854406,1759872641879,-151.0,0.00022867,2]
[389854407,1759872641888,-500.0,0.00022867,2]
[389854408,1759872641897,-500.0,0.00022867,2]
[389854409,1759872641907,-500.0,0.00022867,2]
[389854410,1759872641916,-151.0,0.00022867,2]
[389854411,1759872641925,-500.0,0.00022867,2]
[389854412,1759872641934,-500.0,0.00022867,2]
[389854413,1759872641944,-151.0,0.00022867,2]
[389854414,1759872641953,-500.0,0.00022867,2]
[389854415,1759872641963,-151.0,0.00022867,2]
[389854416,1759872641972,-151.0,0.00022867,2]
[389854417,1759872641982,-151.0,0.00022867,2]
[389854418,1759872641991,-151.0,0.00022867,2]
[389854419,1759872642000,-500.0,0.00022867,2]
[389854420,1759872642009,-500.0,0.00022867,2]
[389854421,1759872642019,-500.0,0.00022867,2]
[389854422,1759872642028,-1000.0,0.00022885,2]
[389854423,1759872642037,-1000.0,0.00022885,2]
[389854424,1759872642047,-1000.0,0.00022885,2]
[389854425,1759872642056,-1000.0,0.00022885,2]
[389854426,1759872642066,-1000.0,0.00022885,2]
[389854427,1759872642076,-1000.0,0.00022885,2]
[389854428,1759872642085,-1000.0,0.00022885,2]
[389854429,1759872642094,-1000.0,0.00022885,2]
[389854430,1759872642104,-1000.0,0.00022885,2]
[389854431,1759872642113,-1000.0,0.00022885,2]
[389854432,1759872642123,-298.5175,0.00022885,2]
[389854433,1759872642131,-1940.52363232,0.000229,2]
[389854434,1759872642141,-176.96952832,0.00022913,2]
[389854435,1759872642151,-500.0,0.00022973,2]
[389854436,1759872642160,-500.0,0.00022973,2]
[389854437,1759872642169,-500.0,0.00022973,2]
[389854438,1759872642178,-500.0,0.00022974,2]
[389854439,1759872642188,-500.0,0.00022974,2]
[389854440,1759872642197,-165.75923199,0.00022974,2]
[389854441,1759872642206,-500.0,0.00022974,2]
[389854442,1759872642216,-500.0,0.00022974,2]
[389854443,1759872642225,-500.0,0.00022974,2]
[389854444,1759872642234,-175.21856265,0.00022974,2]
[389854445,1759872642249,-432.25051724,0.00022974,2]
[389854446,1759872642258,-374.65278337,0.00022974,2]
[389854447,1759872642268,-500.0,0.00022974,2]
[389854448,1759872642278,-500.0,0.00022974,2]
[389854449,1759872642290,-500.0,0.00022974,2]
[389854450,1759872642299,-860.0,0.00022974,2]
[389854451,1759872642308,-168.0,0.00022976,2]
[389854452,1759872642320,-352.5,0.00022983,2]
[389854453,1759872642329,-761.0190396,0.00022986,2]
[389854454,1759872642338,-200.0,0.00022996,2]
[389854455,1759872642347,-151.0,0.00022997,7]
[389854456,1759872642357,-151.0,0.00022997,7]
[389854457,1759872642366,-151.0,0.00022997,7]
[389854458,1759872642375,-151.0,0.00022997,7]
[389854459,1759872642384,-151.0,0.00022997,7]
[389854460,1759872642394,-151.0,0.00022997,7]
[389854461,1759872642404,-151.0,0.00022997,7]
[389854462,1759872642413,-151.0,0.00022997,7]
[389854463,1759872642423,-151.0,0.00022997,7]